Cogmind - Beta 14 @@@ ROGUE MODE // 2024.11.16 @ 15:42:13 Player: Fangrelle Result: Destroyed by Y-45 Defender with Heavy Assault Rifle Performance ------------- Evolutions (2) 1000 Regions Visited (6) 1200 Robots Destroyed (85) 425 Value Destroyed (2629) 2629 Prototype IDs (31) 620 Alien Tech Used (0) 0 Bonus (348) 348 TOTAL SCORE: 6222 Bonus ------- High Alert Combat Kills 60 Aligned with FarCom 300 Friendly Fire -12 Cogmind --------- Core Integrity 0/550 Matter 1/300 Energy 132/140 System Corruption 0% Temperature Cool (29) Movement Rolling (160) Ox4 Location -8/Storage Parts ------- > --- POWER (1) -------- Light Deuterium Engine > --- PROPULSION (2) --- Armored Huge Wheel > --- UTILITY (6) ------ Advanced Heat Sink Huge Storage Unit Heavy Armor Plating Heavy Armor Plating > --- WEAPON (2) ------- Gatling Laser Enhanced Autogun > --- INVENTORY (25) --- Armored Huge Wheel Armored Huge Wheel Armored Huge Wheel Armored Huge Wheel Armored Huge Wheel Cloak of Protection High-powered Tractor Beam PSU Rigger Precision Beam Rifle Gatling Laser Gatling Laser Gatling Laser Heavy Rocket Launcher Heavy Rocket Launcher Improved Datajack Field Lobotomy Kit (5) Plasma Cutter Axe Peak State ------------ > --- POWER ------------ Light Deuterium Engine > --- PROPULSION ------- Armored Huge Wheel > --- UTILITY ---------- Advanced Heat Sink Huge Storage Unit Salvage Targeting Computer Heavy Armor Plating PSU Rigger > --- WEAPON ----------- Gatling Laser Gatling Laser > --- INVENTORY -------- Armored Huge Wheel Armored Huge Wheel Armored Huge Wheel Armored Huge Wheel Armored Huge Wheel Advanced Weight Redist. System Cloak of Protection Heavy Armor Plating Heavy Armor Plating High-powered Tractor Beam Gatling Laser Gatling Laser Heavy Rocket Launcher Heavy Rocket Launcher Improved Datajack Field Lobotomy Kit Plasma Cutter Axe [Rating: 51] Favorites ----------- Power Ion Engine Engine Ion Engine Power Core Light Nuclear Core Propulsion Light Treads Treads Light Treads Leg Improved Aluminum Leg Wheel Armored Huge Wheel Flight Unit Improved VTOL Module Utility Huge Storage Unit Device Improved Heat Sink Storage Huge Storage Unit Processor Salvage Targeting Computer Hackware Hacking Suite Protection Backup Plating I Weapon Beam Cannon Energy Gun Gatling Laser Energy Cannon Beam Cannon Ballistic Gun Shotgun Ballistic Cannon Assault Cannon Launcher Heavy Rocket Launcher Special Weapon Plasma Cutter Slashing Weapon Axe Build | -11 -10 -10 -10 -9 -8 -8 ------- Run | Yrd Mat Min Exi Min Mat Sto Slots Evolved 4 | . . . . . 4 . Power . | . . . . . . . Propulsion . | . . . . . . . Utility 4 | . . . . . 4 . Weapon . | . . . . . . . Parts Attached 105 | . 15 2 1 3 75 9 Power 11 | . 2 . . 1 8 . Engine 9 | . 2 . . 1 6 . Core 2 | . . . . . 2 . Reactor . | . . . . . . . Propulsion 12 | . 2 . . . 10 . Treads 2 | . 2 . . . . . Leg 2 | . . . . . 2 . Wheel 7 | . . . . . 7 . Hover . | . . . . . . . Flight 1 | . . . . . 1 . Utility 36 | . 3 . 1 . 32 . Device 21 | . . . . . 21 . Storage 4 | . 2 . 1 . 1 . Processor 3 | . . . . . 3 . Hackware 2 | . . . . . 2 . Protection 6 | . 1 . . . 5 . Artifact . | . . . . . . . Weapon 46 | . 8 2 . 2 25 9 Energy Gun 12 | . . . . . 6 6 Energy Cannon 13 | . 5 1 . 2 4 1 Ballistic Gun 10 | . . 1 . . 8 1 Ballistic Cannon 1 | . . . . . 1 . Launcher 6 | . 3 . . . 3 . Special Weapon 2 | . . . . . 1 1 Impact Weapon . | . . . . . . . Slashing Weapon 2 | . . . . . 2 . Piercing Weapon . | . . . . . . . Special Melee Weapon . | . . . . . . . Unidentified Prototypes 8 | . . . . . 2 6 Parts Lost 23 | . 1 1 . 1 20 . Power 4 | . . . . . 4 . Propulsion 3 | . . . . . 3 . Utility 8 | . 1 . . 1 6 . Weapon 8 | . . 1 . . 7 . Highest Loss Streak 8 | . 1 1 . 1 8 . To Critical Strikes . | . . . . . . . Average Slot Usage (%) 78 | . 98 98 71 85 71 71 Engine 9 | . 14 14 14 14 5 9 Core 1 | . . . . . 2 . Treads 11 | . 27 28 28 28 . . Leg 2 | . . . . . 4 . Wheel 3 | . . . . . 5 9 Device 4 | . . . . . 7 9 Storage 10 | . 13 14 14 14 9 9 Processor 5 | . . . . . 10 . Hackware 3 | . . . . . 7 . Protection 7 | . 13 14 14 . 3 18 Energy Gun 4 | . . . . . 6 11 Energy Cannon 9 | . 27 22 . 28 2 . Ballistic Gun 1 | . . 5 . . 2 4 Ballistic Cannon 1 | . . . . . 2 . Peak Build Rating 51 | . 8 9 10 11 51 47 Average Rating 20 | . 7 8 8 10 27 46 On Entrance 13 | 6 6 8 8 9 11 46 Naked Turns . | . . . . . . . Heaviest Build 124 | 12 52 52 86 96 124 124 Greatest Support 40 | 20 40 40 40 40 40 28 Greatest Overweight (x) 32 | . 1 1 2 2 32 4 Average Overweight (x) 3 | . . 1 1 2 6 4 Largest Inventory Capacity 25 | . 20 20 25 25 25 25 Average Capacity 22 | . 17 20 21 25 25 25 Most Carried 25 | . 14 15 20 18 25 24 Average Carried 16 | . 9 14 18 17 18 22 Final Capacity 25 | 8 20 20 25 25 25 25 Final Carried 23 | 6 14 14 18 18 21 23 Class Distribution -------------------- 80% | Mutant 19% | Scavenger-Mutant Dominant Class ---------------- Mutant | -10/Materials Mutant | -10/Mines Mutant | -10/Exiles Mutant | -9/Mines Mutant | -8/Materials Mutant | -8/Storage Resources | -11 -10 -10 -10 -9 -8 -8 ----------- Run | Yrd Mat Min Exi Min Mat Sto Matter Collected 1704 | 197 219 . . 113 1134 41 Remotely 175 | . . . . . 175 . Salvage Created 2916 | . 529 226 . 123 1970 68 Parts 158 | . 44 14 . 4 93 3 Haulers Intercepted 3 | . . . . . 3 . Recyclers Shooed 3 | . . . . . 3 . Parts Field Recycled . | . . . . . . . Retrieved Matter . | . . . . . . . Parts Self-Destructed . | . . . . . . . Prevented . | . . . . . . . Kills | -11 -10 -10 -10 -9 -8 -8 ------- Run | Yrd Mat Min Exi Min Mat Sto Combat Hostiles Destroyed 63 | . 17 7 . 3 35 1 Melee 2 | . . . . . 2 . Guns 17 | . . 1 . . 15 1 Cannons 29 | . 12 6 . 3 8 . AOE 14 | . 5 . . . 9 . Classes Destroyed 15 | . 5 . . 1 9 . Worker 4 | . 1 . . . 2 1 Builder 1 | . . . . . 1 . Hauler 3 | . . . . . 3 . Recycler 4 | . . . . . 4 . Mechanic 1 | . . . . . 1 . Operator 1 | . 1 . . . . . Watcher 8 | . 3 . . . 5 . Swarmer 12 | . 6 3 . . 3 . Cutter 2 | . . . . . 2 . Grunt 35 | . 11 4 . 2 17 1 Brawler 1 | . . . . 1 . . Duelist 3 | . . . . . 3 . Sentry 7 | . . . . . 7 . Specialist 2 | . . . . . 2 . Hunter 1 | . . . . . 1 . Best Kill Streak 7 | . 4 7 . 3 5 1 Combat Bots Only 7 | . 4 7 . 3 3 1 Max Kills in Single Turn 2 | . 2 1 . 1 2 1 Gunslinging . | . . . . . . . Exploded 2 | . 2 . . . 2 . Melee 1 | . . . . . 1 . Uniques/NPCs Destroyed . | . . . . . . . Combat | -11 -10 -10 -10 -9 -8 -8 -------- Run | Yrd Mat Min Exi Min Mat Sto Hostile Shots Fired 309 | . 64 23 . 9 206 7 Missed 81 | . 22 6 . 1 51 1 Damage Taken 3736 | . 475 184 . 106 2883 88 Core 665 | . 62 18 . 30 523 32 Absorbed by Shields . | . . . . . . . Ignored by Resistances 32 | . . . . . 32 . Regen/Repaired (Parts) 47 | . . . . . 47 . Core Remaining (%) 78 | 100 . . . 56 . . Volleys Fired 200 | . 43 11 . 4 135 7 Largest 2 | . 2 2 . 2 2 2 Hottest 160 | . 120 120 . 120 160 160 Shots Fired 350 | . 81 21 . 8 228 12 Gun 138 | . . 4 . . 122 12 Cannon 187 | . 75 17 . 8 87 . Launcher 22 | . 6 . . . 16 . Special 3 | . . . . . 3 . Kinetic 98 | . . 4 . . 92 2 Thermal 210 | . 75 17 . 8 100 10 Explosive 22 | . 6 . . . 16 . Electromagnetic 20 | . . . . . 20 . Robot Hit Streak 12 | . 9 12 . 8 11 5 Robot Miss Streak 7 | . 4 1 . 1 7 1 Penetration Max . | . . . . . . . Secondary Targets 3 | . . . . . 3 . Max Gunslinging Chain 1 | . . . . . 1 . Shots Hit Robots 226 | . 39 15 . 6 157 9 Core Hits 138 | . 25 9 . 4 96 4 Critical Kills 1 | . . . . . 1 . Critical Parts Destroyed 1 | . . . . . 1 . Critical Strikes 7 | . . . . . 7 . Destroy 2 | . . . . . 2 . Blast 3 | . . . . . 3 . Sever 2 | . . . . . 2 . Melee Attacks 14 | . . . . . 14 . Impact . | . . . . . . . Slashing 14 | . . . . . 14 . Piercing . | . . . . . . . Sneak Attacks 1 | . . . . . 1 . Combat Hostiles . | . . . . . . . Follow-up Attacks . | . . . . . . . Damage Inflicted 5461 | . 1106 273 . 108 3787 187 Guns 1778 | . . 52 . . 1539 187 Cannons 2036 | . 664 221 . 108 1043 . Explosions 1258 | . 442 . . . 816 . Melee 389 | . . . . . 389 . Ramming . | . . . . . . . Kinetic 1265 | . . 52 . . 1184 29 Thermal 2437 | . 664 221 . 108 1286 158 Explosive 1093 | . 442 . . . 651 . Electromagnetic 277 | . . . . . 277 . Impact . | . . . . . . . Slashing 389 | . . . . . 389 . Piercing . | . . . . . . . Highest Corruption 2 | . 2 2 2 2 . . Average Corruption 2 | . 2 2 2 2 . . Corruption Purged . | . . . . . . . Corruption Blocked . | . . . . . . . Effects 27 | . 10 . 9 8 . . Message Errors 5 | . 1 . 1 3 . . Matter Fused 9 | . 3 . 3 3 . . Heat Flow Errors 1 | . . . 1 . . . Energy Discharges 5 | . 2 . 2 1 . . Parts Fused 1 | . 1 . . . . . Data Loss (minor) 4 | . 1 . 2 1 . . Data Loss (major) 1 | . 1 . . . . . Misfires 1 | . 1 . . . . . Overload Shots . | . . . . . . . Overflow Damage 135 | . 45 . . . 90 . Projectiles 16 | . 14 . . . 2 . Explosions 43 | . 31 . . . 12 . Melee 76 | . . . . . 76 . Knockbacks 5 | . . . . . 5 . Impact . | . . . . . . . Kinetic 5 | . . . . . 5 . Secondary . | . . . . . . . Self-Inflicted Damage 170 | . 32 . . . 138 . Shots 5 | . 1 . . . 4 . Rammed . | . . . . . . . Targets Rammed . | . . . . . . . Kicked . | . . . . . . . Crushed . | . . . . . . . Highest Temperature 466 | . 350 466 185 221 359 103 Average Temperature 114 | . 112 243 94 112 94 43 Received Heat Transfer 1413 | . 159 90 . 57 1071 36 Effects 10 | . . 5 . . 5 . Shutdowns 1 | . . 1 . . . . Energy Bleed 3 | . . 2 . . 1 . Interference 6 | . . 2 . . 4 . Siege Activations . | . . . . . . . Robots Corrupted . | . . . . . . . Combat Hostiles . | . . . . . . . Parts Fried . | . . . . . . . Impact Corruptions . | . . . . . . . Robots Melted 1 | . . . . . 1 . Combat Hostiles 1 | . . . . . 1 . Parts Melted 13 | . 4 1 . 2 4 2 Heat Transferred 4997 | . 1406 444 . 222 2576 349 Parts Sabotaged . | . . . . . . . Parts Stolen . | . . . . . . . Parts Stripped . | . . . . . . . Power Chain Reactions 2 | . . . . . 2 . Alert | -11 -10 -10 -10 -9 -8 -8 ------- Run | Yrd Mat Min Exi Min Mat Sto Peak Influence 578 | . 277 191 . 70 578 283 Initial 243 | . . 61 . . . 243 Average 138 | . 132 116 . 33 149 246 Maximum Alert Level 2 | . 1 . . . 2 1 Low Security (%) 75 | . 85 100 . 100 72 13 Level 1 16 | . 14 . . . 14 86 Level 2 7 | . . . . . 12 . Level 3 . | . . . . . . . Level 4 . | . . . . . . . Level 5 . | . . . . . . . High Security . | . . . . . . . Max Security . | . . . . . . . Squads Dispatched 10 | . 3 1 . . 5 1 Investigation 3 | . 2 . . . 1 . Extermination . | . . . . . . . Reinforcement 6 | . 1 . . . 4 1 Assault 1 | . . 1 . . . . Garrison . | . . . . . . . Intercept . | . . . . . . . Searches Triggered . | . . . . . . . Construction Impeded 1 | . . . . . 1 . Haulers Reinforced . | . . . . . . . Active Scanning Responses . | . . . . . . . Cargo Convoy Interrupts . | . . . . . . . Stealth | -11 -10 -10 -10 -9 -8 -8 --------- Run | Yrd Mat Min Exi Min Mat Sto Distress Signals 4 | . 2 . . . 2 . Communications Jammed . | . . . . . . . Distress Signals . | . . . . . . . Times Spotted 94 | . 25 9 . 3 53 4 Peak Tracking Total 7 | . 5 7 . 3 5 3 Tactical Retreats 4 | . . . . . 4 . Traps | -11 -10 -10 -10 -9 -8 -8 ------- Run | Yrd Mat Min Exi Min Mat Sto Traps Triggered 2 | . 1 . . . 1 . Indirectly . | . . . . . . . Trap Hack Attempts . | . . . . . . . Triggered . | . . . . . . . Disarmed . | . . . . . . . Reprogrammed . | . . . . . . . Reused . | . . . . . . . Traps Extracted . | . . . . . . . Installed . | . . . . . . . Triggered . | . . . . . . . Objects Rigged 18 | . 1 . . . 17 . Exploded 13 | . . . . . 13 . Machines | -11 -10 -10 -10 -9 -8 -8 ---------- Run | Yrd Mat Min Exi Min Mat Sto Machines Disabled 11 | . 4 . . . 6 1 Max in Single Turn 1 | . 1 . . . 1 1 Machines Repaired . | . . . . . . . Machines Dismantled 1 | . . . . . . 1 Machines Sabotaged . | . . . . . . . Overloaded Fab Kills . | . . . . . . . Hacking | -11 -10 -10 -10 -9 -8 -8 --------- Run | Yrd Mat Min Exi Min Mat Sto Machines Accessed 26 | . 10 . 2 . 13 1 Terminals 18 | . 7 . . . 10 1 Fabricators . | . . . . . . . Repair Stations 2 | . 1 . . . 1 . Recycling Units 3 | . 2 . . . 1 . Scanalyzers 1 | . . . . . 1 . Garrison Access . | . . . . . . . Total Hacks 94 | . 42 . 6 . 43 3 Successful 66 | . 33 . 6 . 26 1 Failed 27 | . 9 . . . 16 2 Catastrophic 1 | . . . . . 1 . Database Lockouts 1 | . . . . . 1 . Manual 62 | . 34 . 1 . 27 . Terminals 68 | . 30 . . . 35 3 Fabricators . | . . . . . . . Repair Stations 4 | . 2 . . . 2 . Recycling Units 14 | . 10 . . . 4 . Scanalyzers 2 | . . . . . 2 . Garrison Access . | . . . . . . . Terminal Hacks 24 | . 7 . 6 . 10 1 Record 5 | . . . 5 . . . Robot Analysis 5 | . 4 . . . 1 . Open Door 1 | . . . . . . 1 Branch Access Points 1 | . . . . . 1 . Terminal Index 1 | . 1 . . . . . Alert Level 3 | . . . . . 3 . Unreport Threat 2 | . . . . . 2 . Investigation Status 1 | . . . . . 1 . Hauler Manifests 3 | . 1 . . . 2 . Zone Layout 1 | . 1 . . . . . Derelict Proto ID Bank 1 | . . . 1 . . . Fabricator Hacks . | . . . . . . . Repair Station Hacks 3 | . 1 . . . 2 . Scan Component 1 | . . . . . 1 . Repair 1 | . . . . . 1 . Refit 1 | . 1 . . . . . Recycling Unit Hacks 2 | . 2 . . . . . Report Inventory 1 | . 1 . . . . . Retrieve Components 1 | . 1 . . . . . Scanalyzer 2 | . . . . . 2 . Insert Component 1 | . . . . . 1 . Analyze 1 | . . . . . 1 . Garrison Access Hacks . | . . . . . . . Unauthorized Hacks 35 | . 23 . . . 12 . Terminals 27 | . 16 . . . 11 . Track 1 | . 1 . . . . . Assimilate 8 | . 3 . . . 5 . Botnet 13 | . 7 . . . 6 . Detonate 1 | . 1 . . . . . Disrupt 3 | . 3 . . . . . Operators 1 | . 1 . . . . . Fabricators . | . . . . . . . Repair Stations 1 | . 1 . . . . . Mechanics 1 | . 1 . . . . . Recycling Units 7 | . 6 . . . 1 . Monitor 2 | . 2 . . . . . Reject 1 | . 1 . . . . . Mask 1 | . 1 . . . . . Tunnel 3 | . 2 . . . 1 . Scanalyzers . | . . . . . . . Garrison Access . | . . . . . . . Data Cores Recovered . | . . . . . . . Used . | . . . . . . . Hacking Detections 21 | . 8 . . . 12 1 Full Trace Events . | . . . . . . . Feedback Events . | . . . . . . . Feedback Blocked . | . . . . . . . Robot Schematics Acquired . | . . . . . . . Robots Built . | . . . . . . . Authchips . | . . . . . . . Time . | . . . . . . . Total Robot Build Rating . | . . . . . . . Part Schematics Acquired 1 | . . . . . 1 . Parts Built . | . . . . . . . Authchips . | . . . . . . . Time . | . . . . . . . Total Part Build Rating . | . . . . . . . Parts Repaired 1 | . . . . . 1 . Time 50 | . . . . . 50 . Parts Recycled . | . . . . . . . Recycled Matter . | . . . . . . . Retrieved Matter . | . . . . . . . Retrieved Components 3 | . 3 . . . . . Parts Scanalyzed 1 | . . . . . 1 . Part Schematics Acquired 1 | . . . . . 1 . Parts Damaged . | . . . . . . . Bothacking | -11 -10 -10 -10 -9 -8 -8 ------------ Run | Yrd Mat Min Exi Min Mat Sto Used RIF Installer . | . . . . . . . Robots Hacked . | . . . . . . . Non-combat . | . . . . . . . Combat . | . . . . . . . Robot Hacks Applied . | . . . . . . . Relay Couplers Released . | . . . . . . . Fabnet Peak Effective % . | . . . . . . . Robots Rewired . | . . . . . . . Allies Hacked . | . . . . . . . Hacks Repelled . | . . . . . . . Allies | -11 -10 -10 -10 -9 -8 -8 -------- Run | Yrd Mat Min Exi Min Mat Sto Total Allies 4 | . . 1 . . 3 . Largest Group 1 | . . 1 . . 1 1 Highest-Rated Group 31 | . . 31 . . 26 10 Highest-Rated Ally 31 | . . 31 . . 26 10 Total Orders 2 | . . . . . . 2 STAY 1 | . . . . . . 1 FOLLOW 1 | . . . . . . 1 Ally Attacks 3 | . . 3 . . . . Total Damage 62 | . . 62 . . . . Kills . | . . . . . . . Allies Corrupted 1 | . . . . . 1 . Allies Melted . | . . . . . . . Intel | -11 -10 -10 -10 -9 -8 -8 ------- Run | Yrd Mat Min Exi Min Mat Sto Robot Analysis Total 5 | . 4 . . . 1 . Derelict Logs Recovered 1 | . . 1 . . . . Drone Launches . | . . . . . . . Drone Recoveries . | . . . . . . . Exploration | -11 -10 -10 -10 -9 -8 -8 ------------- Run | Yrd Mat Min Exi Min Mat Sto Turns Passed 9001 | . 1946 141 885 811 4757 461 Spaces Moved 2884 | 1 825 44 331 249 1213 221 Core 110 | . . . . . 110 . Treads 1466 | . 819 44 331 249 23 . Legs 80 | 1 6 . . . 73 . Wheels 1228 | . . . . . 1007 221 Hover . | . . . . . . . Flight . | . . . . . . . Fastest Speed 120 | 120 120 240 240 320 130 160 Average Speed 260 | 120 216 240 264 320 296 160 Slowest Speed 1650 | 120 240 240 320 320 1650 160 Overloaded Moves . | . . . . . . . Propulsion Burnouts . | . . . . . . . Robots Hopped . | . . . . . . . Cave-ins Triggered . | . . . . . . . Exploration Rate (%) 44 | 1 95 9 70 40 70 29 Regions Visited 6 Branch Regions 4 Pre-discovered Areas 4 | . 2 . 1 . 1 . Known Exits Taken 1 | . . . . . 1 . Unknown Exits Taken 5 | 1 1 1 1 1 . . Scrap Searched . | . . . . . . . Spaces Dug 83 | . . . . . 83 . Terrain Destroyed 233 | . 30 . . . 203 . Melee 3 | . . . . . 3 . Projectile 13 | . . . . . 13 . AOE 217 | . 30 . . . 187 . Terrain Rammed . | . . . . . . . Walls Destroyed . | . . . . . . . Machines Disabled . | . . . . . . . Actions | -11 -10 -10 -10 -9 -8 -8 --------- Run | Yrd Mat Min Exi Min Mat Sto Total 3994 | . 910 59 343 256 2125 301 Wait 610 | . 3 . . . 559 48 Move 2878 | . 824 43 330 248 1212 221 Hop . | . . . . . . . Pick Up 74 | . 13 2 6 1 52 . Fast Attach 31 | . 3 . . . 21 7 Attach 42 | . 4 1 . 2 34 1 Detach 20 | . 2 . 2 . 13 3 Swap 32 | . 8 1 1 1 20 1 Drop 68 | . 10 1 4 . 48 5 Fire 200 | . 43 11 . 4 135 7 Melee 14 | . . . . . 14 . Ram . | . . . . . . . Kick . | . . . . . . . Crush . | . . . . . . . Escape Stasis . | . . . . . . . Rewire . | . . . . . . . Trap 17 | . . . . . 17 . Miscellaneous 8 | . . . . . . 8 Route ------- -11/Scrapyard -10/Materials (discovered 6 exits: [*Mat x3] / [*Min x2] / [*Sub]) -10/Mines -10/Exiles -9/Mines -8/Materials (discovered 4 exits: [*Fac x3] / *Sto) -8/Storage History --------- Turn | Location | Event 1 | -11/Scrapyard | Discovered new exit (range 0) 1 | -11/Scrapyard | Entered Materials 310 | -10/Materials | Discovered new exit (range 15) 323 | -10/Materials | Build established: Mutant 852 | -10/Materials | Discovered new exit (range 7) 1171 | -10/Materials | Discovered new exit (range 12) 1582 | -10/Materials | Discovered new exit (range 16) 1803 | -10/Materials | Discovered new exit (range 4) 1870 | -10/Materials | Discovered new exit (range 10) 1947 | -10/Materials | Entered Mines 1948 | -10/Mines | Met a Derelict testing a Signal Generator 1974 | -10/Mines | Found Signal Generator 1996 | -10/Mines | Learned Materials terminal intel 2072 | -10/Mines | Destroyed 7 combat bots 2078 | -10/Mines | Deemed a non-threat by the Exiles lab entrance 2078 | -10/Mines | Discovered new exit (range 5) 2088 | -10/Mines | Entered Exiles 2157 | -10/Exiles | Met 8R-AWN 2191 | -10/Exiles | Met EX-HEX 2354 | -10/Exiles | Met EX-DEC 2491 | -10/Exiles | Learned location of Zion (-7) 2536 | -10/Exiles | Met EX-BIN 2572 | -10/Exiles | Aligned with FarCom system 2575 | -10/Exiles | Given EX-Vault access code 2630 | -10/Exiles | Opened EX-Vault 2645 | -10/Exiles | Found Field Lobotomy Kit 2653 | -10/Exiles | Found PSU Rigger 2670 | -10/Exiles | Found Cloak of Protection 2735 | -10/Exiles | Warned to stay clear of 0b10 Research branches 2761 | -10/Exiles | Exiles lab attacked by MAIN.C 2944 | -10/Exiles | Discovered new exit (range 11) 2973 | -10/Exiles | Stole three prototypes: Cloak of Protection, PSU Rigger, Field Lobotomy Kit 2973 | -10/Exiles | Entered Mines 2980 | -9/Mines | Met a Derelict bent on vengeance 3075 | -9/Mines | Discovered new exit (range 11) 3127 | -9/Mines | Received a Rocket Launcher from a helpful Derelict 3784 | -9/Mines | Entered Materials 3784 | -8/Materials | Evolved 4 slots: Utility x4 3785 | -8/Materials | Loaded intel: 12 terminal locations 3991 | -8/Materials | Lost 8 parts (1p2n1u4w) 4278 | -8/Materials | Build established: Scavenger-Mutant 4788 | -8/Materials | Build established: Mutant 6035 | -8/Materials | Core integrity fell below 50% 6069 | -8/Materials | Lost 3 parts (1p1u1w) 6586 | -8/Materials | Build established: Scavenger-Mutant 6742 | -8/Materials | Discovered new exit (range 16) 7526 | -8/Materials | Core integrity fell below 20% 7693 | -8/Materials | Central database locked down 7723 | -8/Materials | Build established: Mutant 7817 | -8/Materials | Discovered new exit (range 10) 7899 | -8/Materials | Repaired Adv. Heat Sink 8185 | -8/Materials | Identified exit to Storage 8339 | -8/Materials | Discovered new exit (range 14) 8541 | -8/Materials | Entered Storage 8541 | -8/Storage | Accompanied by 1 ally 9002 | -8/Storage | Destroyed by Y-45 Defender with Heavy Assault Rifle Last Messages --------------- 08725_ K-01 Serf collects debris. 08740_ K-01 Serf destroyed. 08740_ R-06 Scavenger collects Wheel. 08741_ Extracted 21 matter. 08742_ Acquired 20 matter. 08743_ R-06 Scavenger collects Lgt. Ion Engine. 08747_ Acquired Prototype Energy Gun. 08747_ Identified Hvy. Particle Gun. 08748_ Dropped Hvy. Particle Gun. 08750_ Acquired Prototype Ballistic Gun. 08750_ Identified Enh. Autogun. 08771_ R-06 Scavenger collects Sml. Matter Pod. 08775_ R-06 Scavenger collects Hvy. Particle Gun. 08803_ K-01 Serf collects debris. 08988_ Connecting with Door Terminal... >>Open(Door) Sealed Heavy Doors opened. 08992_ Acquired Prototype Energy Cannon. 08992_ Identified Adv. Beam Cannon. 08994_ Dropped Adv. Beam Cannon. Map ----- +----------------------------------------------------+ | ????????????????????????????????????? | | ????????????????????????????????????? | | ????????????????????????????????????? | | ????????????????????????????????????? | | ????????????????????????????????????? | | ????????????????????????????????????? | | ????????????????????????????????????? | | ????????????????????????????????????? | | ????????????????????????????????????? | | ????????????????????? ?????Y??????? | | ????????????????????? #??s??ss????? | | ????????????????????#w #????s??????? | | ????????????????????# #???????????? | | ????????????????????# #???????????? | | ????????????????????# +???????????? | | ????????????????????# #???????????? | | ????????????????????# #???????????? | | ????????????????????# #???????????? | | ??#####?????????????# #???????????? | | ??#"""#?#+#?????????# #???????????? | | ??#"R"#?# ########### #???????????? | | ?##" "### # # #???????????? | | ?# # # """ """ # #???????????? | | ?# / # # """ """ # ######??????? | | ?# + + """ """ / YY ]]#??????? | | ?# """ # # # #@ ]]#??????? | | ?# """ # # # # ]]#??????? | | ?# """ # # # #T####??????? | | ##+###### # + ###?????????? | | #????# ############# #???????????? | | #????# #???????????# #???????????? | | #????# #???????????# #???????????? | | #????# #???????????# #???????????? | | #????? ????????????# #???????????? | | #????? ????????????? #???????????? | | #????? ?????????????##???????????? | | ####?????#??????????????????????????? | | ????????????????????????????????????? | | ????????????????????????????????????? | | ????????????????????????????????????? | | ????????????????????????????????????? | | | | | | | | | | | | | | | | | | | +----------------------------------------------------+ Best States ------------- Heat Dissipation 50 Energy Generation 14 Energy Capacity 465 Matter Stores 300 Matter Capacity 300 Sight Range 16 Terrain Scan Density 10 ECM Strength 1 Armor Coverage 1200 Resistance: TH 10 Evasion (%) 40 Recoil Reduction 4 Salvage Targeting 1 Offensive Hacking 10 Defensive Hacking 10 Item Schematics ----------------- Hvy. Armor Plating | -8/Materials | Scanalyzed Robot Schematics ------------------ None Fabricated ------------ Nothing Alien Tech Used ----------------- None Achievements -------------- None Challenges ------------ None Game ------ Seed ExpertGreatFirepult Manual? 0 Play Time 00:52:25 Cumulative 92.1 hours Start 2024.11.16 @ 14:52:49 End 2024.11.16 @ 15:42:13 Sessions 1 Manual Loads 0 Difficulty Rogue Special Mode None Game No. 162 Rogue 162 Adventurer 0 Explorer 0 Win Type - Total 0 Types 0/0/0/0/0/0/0/0/0 Lore% 42 Gallery% 37 Achievement% 34 Wizard Run 0 Options --------- Layout 0 ASCII 0 Keyboard 0 Movement Mouse Keybinds 0 Fullscreen 1 Font 24/Cog Map View 91x25 Zoom Use 84% Tactical HUD 1 Map Filters NONE Filters NONE Steam 1 RUN: 42c62ca4-ff66-4e5c-bad3-bf44b0010433